bitfinex/quotes_ETHUSD_20251217
["timestamp","ask_amount","ask_price","bid_price","bid_amount"]
[1766011594502,3.8508,2831.9,2831.7,0.46438023]
[1766011594835,3.8508,2831.9,2831.6,0.46438023]
[1766011595614,0.5451,2831.7,2831.3,10.17625761]
[1766011595949,3.8508,2831.7,2831.3,10.17625761]
[1766011596111,3.8508,2831.7,2831.4,0.46438023]
[1766011596739,3.8508,2831.6,2831.3,0.002]
[1766011597043,6.64232022,2832.3,2831.3,0.002]
[1766011597044,3.8508,2831.5,2831.3,0.002]
[1766011597209,0.5451,2831.4,2831.3,0.002]
[1766011597409,3.8508,2831.4,2831.3,0.002]
[1766011597934,3.8508,2831.4,2831.1,0.002]
[1766011599640,0.5451,2831.3,2831.0,0.002]
[1766011599812,3.8508,2831.3,2831.0,0.002]
[1766011600910,0.5748,2831.8,2831.0,0.002]
[1766011601115,3.3215,2831.5,2831.0,0.002]
[1766011601320,0.5748,2831.3,2831.0,0.002]
[1766011601506,0.5748,2831.3,2830.9,0.002]
[1766011601507,0.5748,2831.1,2830.9,0.002]
[1766011601709,3.3215,2831.0,2830.9,0.002]
[1766011602315,3.8963,2831.0,2830.9,0.002]
[1766011603540,3.3215,2831.3,2830.9,0.002]
[1766011603740,3.8963,2831.1,2830.9,0.002]
[1766011603921,0.5748,2831.1,2830.8,0.002]
[1766011604335,3.8963,2831.1,2830.8,0.002]
[1766011604717,0.5748,2831.0,2830.2,3.53525076]
[1766011605039,3.3215,2830.9,2830.2,0.46638023]
[1766011605239,3.3215,2830.8,2830.2,0.46638023]
[1766011605541,3.8963,2830.5,2830.2,0.002]
[1766011605836,3.8963,2830.4,2830.2,0.002]
[1766011606242,3.3215,2830.8,2830.2,0.002]
[1766011606444,0.5748,2830.5,2830.2,0.002]
[1766011606633,3.8963,2830.5,2830.2,0.002]
[1766011608823,3.3215,2831.0,2830.2,0.002]
[1766011609017,3.8963,2830.8,2830.2,0.002]
[1766011609220,0.38963,2830.7,2830.2,0.002]
[1766011609419,4.36068023,2831.1,2830.2,0.002]
[1766011609634,0.46438023,2831.1,2830.2,0.002]
[1766011609932,3.8963,2831.0,2830.2,0.002]
[1766011610337,0.5748,2830.9,2830.2,0.002]
[1766011611442,3.3215,2831.0,2830.2,0.002]
[1766011611646,3.8963,2831.2,2830.2,0.407504]
[1766011611947,3.8963,2831.2,2830.2,0.002]
[1766011612156,3.8963,2831.2,2830.2,0.04788208]
[1766011614456,4.36068023,2831.4,2830.3,7.06638872]
[1766011614662,5.46108028,2831.4,2830.4,0.71142708]
[1766011615365,4.36068023,2831.4,2830.4,0.71142708]
[1766011616185,3.8963,2831.4,2830.4,0.71142708]
[1766011616334,3.8963,2831.4,2830.5,7.0658894]
[1766011616759,3.8963,2831.4,2830.6,0.405504]
[1766011617367,0.001,2831.5,2830.6,0.405504]
[1766011617660,0.001,2831.5,2830.7,0.74713934]
[1766011618459,0.001,2831.5,2830.7,4.27977759]
[1766011618870,3.8963,2831.4,2830.7,4.27977759]
[1766011619341,0.001,2831.5,2830.7,7.81247268]
[1766011620268,0.001,2831.4,2830.7,7.81247268]
[1766011620575,0.001,2831.4,2830.8,0.82179767]
[1766011620779,0.001,2831.4,2830.9,3.53244551]
[1766011621980,0.001,2831.4,2830.9,7.06489102]
[1766011622169,0.001,2831.5,2830.9,7.06489102]
[1766011622484,0.001,2831.5,2829.8,0.002]
[1766011622485,3.3215,2830.9,2829.8,0.002]
[1766011622697,3.3215,2830.3,2829.8,0.002]
[1766011622997,3.8963,2830.0,2829.8,0.002]
[1766011623481,3.8963,2829.9,2829.8,0.002]
[1766011623787,0.5748,2829.8,2829.4,0.56]
[1766011623952,3.8963,2829.8,2829.4,0.56]
[1766011624854,3.8963,2829.8,2829.2,3.99888326]
[1766011625059,3.8963,2829.8,2829.4,0.56]
[1766011625354,3.8963,2829.8,2829.5,0.56]
[1766011626171,0.54198436,2830.4,2829.5,0.56]
[1766011626374,3.8963,2830.8,2829.9,0.405504]
[1766011626551,3.8963,2831.4,2830.1,7.05437844]
[1766011627004,0.001,2831.5,2830.5,0.405504]
[1766011627156,0.001,2831.5,2830.7,0.405504]
[1766011628610,0.001,2831.5,2830.8,3.53257029]
[1766011628762,0.001,2831.2,2830.8,3.53257029]
[1766011629069,0.001,2831.2,2830.9,0.7470688]
[1766011629258,0.001,2831.2,2831.0,0.56]
[1766011634365,3.8388,2831.2,2830.6,3.53278876]
[1766011634666,0.001,2831.5,2830.8,3.53256474]
[1766011634873,0.001,2831.5,2830.9,0.40925647]
[1766011635072,3.8388,2831.5,2830.9,0.40925647]
[1766011636101,3.8388,2831.5,2830.9,3.94164972]
[1766011637105,0.001,2831.5,2830.9,3.94164972]
[1766011639600,0.001,2831.5,2830.9,3.94168049]
[1766011639803,0.001,2831.5,2831.0,0.39416805]
[1766011640004,0.001,2831.5,2831.1,0.56]
[1766011640597,3.8388,2831.5,2831.1,0.56]
[1766011640798,0.001,2831.5,2831.1,0.56]
[1766011641608,0.54198436,2832.2,2831.1,0.56]
[1766011642891,3.2813,2832.1,2831.1,0.56]
[1766011643103,0.46438023,2831.8,2831.1,0.56]
[1766011644206,0.46438023,2831.9,2831.1,0.56]
[1766011644410,0.38232844,2832.0,2831.1,0.56]
[1766011644596,0.46438023,2831.8,2831.1,0.56]
[1766011644795,0.46438023,2832.0,2831.1,0.56]
[1766011644796,0.5565,2832.0,2831.1,0.56]
[1766011645300,4.30218023,2831.8,2831.1,0.56]
[1766011646180,0.54298436,2832.2,2831.1,0.56]
[1766011646590,0.54298436,2832.2,2831.0,3.53229314]
[1766011646803,0.54298436,2832.2,2831.2,0.56]
[1766011647410,3.8378,2831.9,2831.2,0.56]
[1766011649692,0.54298436,2832.2,2831.2,7.62410467]
[1766011649693,0.001,2832.2,2831.2,7.62410467]
[1766011651015,0.001,2832.2,2831.3,0.46438023]
[1766011651313,0.001,2832.2,2831.4,0.80884849]
[1766011651814,3.8388,2832.2,2831.4,0.80884849]
[1766011652712,0.001,2832.2,2831.4,0.80884849]
[1766011652914,0.001,2832.4,2831.4,4.34063501]
[1766011653313,0.46438023,2832.3,2831.4,4.34063501]
[1766011653707,0.001,2832.4,2831.4,4.34063501]
[1766011653907,0.46438023,2832.2,2831.4,4.34063501]
[1766011654493,0.46438023,2832.2,2831.5,0.56]
[1766011654695,0.89469825,2832.2,2831.4,4.34063501]
[1766011655019,3.8378,2832.1,2831.6,4.09150582]
[1766011655198,0.46438023,2832.2,2831.6,4.09150582]
[1766011657325,3.8378,2832.3,2831.6,4.09150582]
[1766011657527,0.46438023,2832.2,2831.6,4.09150582]
[1766011657704,3.8378,2832.3,2831.6,7.62307807]
[1766011657892,0.001,2832.4,2831.7,0.76230781]
[1766011658720,0.5565,2832.2,2831.7,0.76230781]
[1766011658922,3.8378,2832.2,2831.7,0.76230781]
[1766011659819,3.8388,2832.2,2831.8,3.53132283]
[1766011661206,3.8388,2832.2,2831.7,4.29368713]
[1766011662735,0.001,2832.2,2831.8,0.8385193]
[1766011663134,4.103,2832.2,2831.8,0.8385193]
[1766011664233,0.5636,2832.1,2831.8,0.8385193]
[1766011664535,0.001,2832.2,2831.8,0.8385193]
[1766011664748,4.103,2832.2,2831.8,0.8385193]
[1766011665753,3.5394,2832.2,2831.8,0.8385193]
[1766011666051,0.5636,2832.1,2831.8,0.8385193]
[1766011666718,4.102,2832.1,2831.8,0.8385193]
[1766011667048,4.102,2832.1,2831.8,4.36981962]
[1766011667254,4.103,2832.2,2831.8,4.36981962]
[1766011668821,4.103,2832.2,2831.7,3.53144754]
[1766011671044,0.001,2832.2,2831.7,3.53144754]
[1766011671239,4.103,2832.2,2831.7,3.53144754]
[1766011671749,0.001,2832.4,2831.7,7.06289508]
[1766011672115,0.001,2832.4,2831.8,0.405504]
[1766011672339,4.103,2832.4,2831.9,0.74683991]
[1766011672541,4.103,2832.4,2832.0,0.559]
[1766011672864,0.001,2832.4,2832.0,4.09006067]
[1766011673344,4.103,2832.4,2832.0,4.09006067]
[1766011673645,4.102,2832.3,2832.0,0.559]
[1766011675851,0.001,2832.4,2832.0,0.559]
[1766011676030,4.103,2832.4,2832.0,0.559]
[1766011679544,0.001,2832.4,2832.0,4.09002196]
[1766011680550,4.103,2832.4,2832.0,4.09002196]
[1766011682555,4.103,2832.4,2832.0,3.53102196]
[1766011682758,4.103,2832.4,2832.1,0.559]
[1766011683139,0.001,2832.4,2832.1,0.559]
[1766011683866,4.103,2832.4,2832.1,0.559]
[1766011684966,4.103,2832.4,2832.2,0.559]
[1766011689265,0.001,2832.4,2832.2,0.559]
[1766011689555,4.103,2832.6,2832.2,0.559]
[1766011689862,0.001,2832.6,2832.2,0.559]
[1766011690036,3.8555,2832.5,2832.2,0.559]
[1766011690354,3.3022,2832.5,2832.2,0.559]
[1766011690533,0.5533,2832.4,2832.2,0.559]
[1766011690926,0.001,2832.6,2832.2,0.559]
[1766011692554,4.0167,2832.6,2832.2,0.559]
[1766011693058,0.001,2832.6,2832.2,0.559]
[1766011694763,4.0157,2832.5,2832.2,0.559]
[1766011694965,0.001,2832.6,2832.2,0.559]
[1766011695167,4.0167,2832.6,2832.2,0.559]
[1766011695666,4.0157,2832.5,2832.2,0.559]
[1766011695862,3.4355,2832.5,2832.2,0.559]
[1766011696167,0.46438023,2832.5,2832.3,0.559]
[1766011696764,0.001,2832.6,2832.3,0.559]
[1766011697471,3.4355,2832.5,2832.3,0.559]
[1766011697851,0.5802,2832.4,2832.3,0.559]
[1766011698472,4.0157,2832.4,2832.3,0.559]
[1766011700469,4.0167,2833.4,2832.4,0.405504]
[1766011700782,0.001,2833.4,2832.7,6.64182199]
[1766011701071,0.001,2833.8,2832.8,0.964504]
[1766011701939,0.001,2833.8,2833.0,0.04588208]
[1766011702145,0.001,2833.8,2833.2,3.52957786]
[1766011702361,4.0167,2834.2,2833.3,1.3054699]
[1766011702565,0.001,2834.2,2833.3,1.3054699]
[1766011702876,0.001,2834.2,2833.4,0.405504]
[1766011705557,0.001,2833.8,2833.4,0.405504]
[1766011707880,0.001,2833.8,2833.4,3.93478746]
[1766011708060,0.001,2833.8,2833.5,0.87696892]
[1766011709876,0.001,2833.8,2833.5,4.40615643]
[1766011710452,0.001,2833.8,2833.5,0.87696892]
[1766011711067,0.001,2833.8,2833.5,4.40613304]
[1766011711588,0.001,2834.2,2833.5,7.9353372]
[1766011711881,0.001,2834.2,2833.6,0.83867233]
[1766011712058,0.001,2834.2,2833.7,0.559]
[1766011712380,0.001,2834.5,2833.7,0.559]
[1766011713500,0.001,2834.5,2833.7,7.19179412]
[1766011713672,0.001,2834.5,2833.8,0.405504]
[1766011713869,0.001,2834.5,2833.9,0.75972981]
[1766011714250,0.001,2834.5,2833.9,4.28842492]
[1766011716364,0.001,2834.5,2834.0,0.559]
[1766011716563,0.46538023,2834.7,2834.1,0.405504]
[1766011720462,0.46538023,2834.7,2834.2,0.559]
[1766011720688,0.46538023,2834.7,2834.2,1.67158387]
[1766011721495,3.7028,2834.7,2834.2,1.67158387]
[1766011723089,0.001,2834.7,2834.2,1.67158387]
[1766011723291,0.001,2834.9,2834.2,1.67158387]
[1766011723670,0.001,2834.9,2834.2,5.1999043]
[1766011723871,0.001,2834.9,2834.3,0.56054083]
[1766011728801,0.001,2834.9,2834.3,4.0887393]
[1766011728974,0.001,2835.1,2834.4,0.405504]
[1766011729575,0.46438023,2835.3,2834.7,0.405504]
[1766011729881,0.46438023,2835.3,2834.8,0.559]
[1766011732204,0.001,2835.4,2834.8,0.559]
[1766011732611,0.001,2835.4,2834.9,0.559]
[1766011740813,0.001,2835.4,2834.7,0.405504]
[1766011741010,0.001,2835.4,2834.8,0.558]
[1766011741319,3.1373,2835.3,2834.3,0.56054083]
[1766011741534,3.1373,2835.3,2833.3,0.002]
[1766011741535,0.5645,2834.6,2833.6,3.52899766]
[1766011741682,0.5645,2834.0,2833.6,0.002]
[1766011741889,0.5645,2834.0,2833.3,0.002]
[1766011741890,3.7018,2833.6,2833.3,0.002]
[1766011742087,0.54253317,2834.6,2832.5,3.53241312]
[1766011742088,3.1373,2833.3,2832.5,0.002]
[1766011742388,0.5645,2833.0,2832.6,0.559]
[1766011742609,0.46438023,2833.5,2832.6,0.559]
[1766011742799,3.1373,2833.3,2832.6,0.559]
[1766011743117,3.7018,2833.2,2832.5,0.002]
[1766011743321,3.7018,2833.2,2832.6,0.559]
[1766011743621,0.46438023,2833.8,2832.6,0.559]
[1766011743622,0.46438023,2833.8,2832.6,4.08929877]
[1766011743791,3.7018,2833.7,2832.6,4.08929877]
[1766011744120,3.1373,2834.0,2832.9,0.86988423]
[1766011744296,3.1373,2834.0,2833.1,7.03829812]
[1766011744505,0.5645,2834.1,2833.1,7.03829812]
[1766011745330,0.5645,2834.1,2833.2,3.52957786]
[1766011745518,3.7018,2834.0,2833.2,3.52957786]
[1766011747094,3.7018,2833.9,2833.2,3.52957786]
[1766011748434,3.7018,2833.9,2833.2,5.07027194]
[1766011749223,7.63970752,2834.5,2833.2,5.07027194]
[1766011749534,3.1373,2834.0,2833.2,3.52957786]
[1766011749734,0.5645,2833.9,2833.2,3.52957786]
[1766011749901,3.7018,2833.9,2833.2,3.52957786]
[1766011750529,0.5292,2833.8,2833.2,3.52957786]
[1766011750914,0.5292,2833.8,2833.3,0.559]
[1766011751112,3.5257,2833.8,2833.3,0.559]
[1766011751321,2.9965,2833.9,2833.3,0.559]
[1766011751516,3.516,2833.9,2833.3,0.559]
[1766011751717,3.516,2833.9,2833.2,3.52957786]
[1766011752004,3.516,2833.9,2833.3,0.559]
[1766011752225,2.9965,2833.7,2833.4,0.559]
[1766011752431,3.516,2833.6,2833.4,0.559]
[1766011752905,3.516,2833.6,2833.2,3.52957786]
[1766011752906,2.9965,2833.6,2833.5,0.559]
[1766011753238,3.516,2833.5,2833.1,3.93714053]
[1766011753407,3.516,2833.5,2833.2,0.559]
[1766011753801,2.9965,2833.5,2833.1,3.93714053]
[1766011753999,0.3516,2833.9,2833.2,0.559]
[1766011754000,3.516,2833.4,2833.2,0.559]
[1766011754435,2.9965,2833.6,2833.2,0.559]
[1766011754638,3.516,2833.6,2833.2,0.559]
[1766011755049,3.516,2833.9,2833.2,1.43662318]
[1766011755447,3.516,2833.9,2833.2,4.96609033]
[1766011755750,2.9965,2834.1,2833.2,4.96609033]
[1766011756055,3.516,2834.1,2833.2,4.96609033]
[1766011756936,0.001,2833.9,2833.2,4.96609033]
[1766011757119,0.001,2833.9,2833.3,0.89032309]
[1766011758252,0.001,2833.9,2833.3,4.41975793]
[1766011762252,0.001,2833.9,2833.4,0.559]
[1766011764153,0.001,2833.9,2833.3,4.41975793]
[1766011764452,0.001,2833.9,2833.5,0.559]
[1766011766958,0.001,2833.9,2833.3,4.41975793]
[1766011767250,0.001,2833.9,2833.4,0.559]
[1766011768054,0.001,2833.9,2833.3,4.41975793]
[1766011768257,0.001,2833.9,2833.5,0.559]
[1766011777069,0.001,2833.9,2833.5,4.08816475]
[1766011777247,3.516,2834.2,2833.5,4.93914564]
[1766011777436,0.83688023,2834.9,2833.5,4.93914564]
[1766011777769,2.9965,2834.6,2833.5,4.93914564]
[1766011777963,2.9965,2834.4,2833.5,4.93914564]
[1766011778165,0.5195,2834.5,2833.7,0.405504]
[1766011778968,3.516,2834.5,2833.7,0.405504]
[1766011779538,3.516,2834.5,2833.8,3.52883054]
[1766011779741,3.516,2834.5,2833.9,0.559]
[1766011781095,0.001,2834.2,2833.9,0.559]
[1766011781273,0.001,2834.2,2834.0,0.40878305]
[1766011781454,0.001,2834.2,2834.1,0.559]
[1766011781854,0.001,2834.2,2834.1,0.59428457]
[1766011783168,0.001,2834.2,2834.1,0.03528457]
[1766011783474,0.001,2834.2,2834.1,0.59428457]
[1766011785065,0.99838023,2834.8,2834.1,1.01217509]
[1766011785266,0.46438023,2835.0,2834.1,4.54061588]
[1766011785844,0.001,2835.1,2834.1,4.54061588]
[1766011786045,0.46438023,2834.9,2834.1,4.54061588]
[1766011786280,0.46438023,2834.9,2834.2,0.45406159]
[1766011786675,2.9589,2835.0,2834.2,0.45406159]
[1766011786857,0.46438023,2834.8,2834.2,3.98231665]
[1766011788166,3.4929,2834.9,2834.2,3.98231665]
[1766011788370,3.4939,2835.1,2834.3,0.45413166]
[1766011789060,3.4939,2835.1,2834.4,3.52808354]
[1766011789250,3.4939,2835.1,2834.5,0.559]
[1766011789451,0.001,2835.1,2834.5,0.559]
[1766011789651,0.001,2835.1,2834.6,0.40870835]
[1766011791154,0.001,2835.1,2834.6,3.9365307]
[1766011791358,0.001,2835.4,2834.6,3.9365307]
[1766011793179,0.001,2835.4,2834.7,0.405504]
[1766011793778,0.001,2835.5,2834.7,0.405504]
[1766011793955,0.001,2835.5,2834.8,0.78698693]
[1766011794150,0.001,2835.5,2834.9,0.559]
[1766011797294,0.001,2835.5,2834.9,4.08645887]
[1766011797459,0.001,2835.5,2834.9,0.559]
[1766011797659,0.001,2835.5,2834.8,4.31452013]
[1766011797860,0.001,2835.5,2834.9,1.38276617]
[1766011798275,0.001,2835.5,2834.9,4.9102018]
[1766011800685,0.001,2835.5,2834.9,4.3522018]
[1766011800882,0.001,2835.5,2835.0,0.558]
[1766011801157,0.534,2835.4,2835.0,0.558]
[1766011801356,3.4939,2835.5,2835.0,0.558]
[1766011802192,3.4939,2835.5,2834.9,4.3522018]
[1766011802193,3.4929,2835.3,2835.1,0.558]
[1766011802383,3.4929,2835.2,2835.1,0.558]
[1766011802885,2.9589,2835.3,2835.1,0.558]
[1766011803559,3.4929,2835.1,2834.7,3.93316149]
[1766011803758,0.534,2835.3,2834.8,1.30409441]
[1766011803970,3.4929,2835.2,2834.8,1.30409441]
[1766011804256,3.4929,2835.2,2834.8,4.831667]
[1766011804985,3.4929,2835.3,2834.8,4.831667]
[1766011807998,0.001,2835.5,2834.8,4.831667]
[1766011808294,0.001,2835.5,2834.9,0.5237171]
[1766011809995,2.6057,2835.4,2834.8,4.273667]
[1766011810200,0.4887,2835.1,2834.9,0.558]
[1766011810403,3.0944,2835.0,2834.9,0.558]
[1766011810576,0.001,2835.5,2834.9,0.558]
[1766011810777,2.6877,2835.2,2834.9,1.08171789]
[1766011811073,3.1658,2835.1,2834.9,1.08171789]
[1766011811484,0.001,2835.4,2834.9,1.08171789]
[1766011811696,3.1658,2835.2,2834.9,1.08171789]
[1766011812305,0.001,2835.4,2834.9,1.08171789]
[1766011812605,0.001,2835.4,2835.0,0.53553928]
[1766011819912,2.6877,2835.3,2834.8,4.27561173]
[1766011820118,3.1658,2835.2,2835.1,0.558]
[1766011820425,3.1658,2835.3,2835.1,0.558]
[1766011821199,0.001,2835.4,2835.1,0.558]
[1766011822814,3.1668,2835.4,2835.1,0.558]
[1766011823004,0.001,2835.4,2835.1,0.558]
[1766011824614,3.1668,2835.4,2835.1,0.558]
[1766011824812,0.001,2835.4,2835.1,0.558]
[1766011828724,0.001,2835.4,2835.2,0.558]
[1766011829020,0.001,2835.4,2834.9,3.52744815]
[1766011829321,0.001,2835.4,2835.0,0.558]
[1766011833918,0.001,2835.4,2835.0,4.08533123]
[1766011834926,0.001,2835.5,2835.0,4.08533123]
[1766011835416,0.001,2835.5,2835.0,4.08733123]
[1766011835616,0.001,2835.4,2835.0,4.08733123]
[1766011835819,0.001,2835.4,2835.1,0.84355819]
[1766011836721,0.001,2835.4,2835.1,4.3707554]
[1766011838822,0.001,2835.4,2835.1,0.84355819]
[1766011840024,0.001,2835.4,2835.1,4.37073912]
[1766011847331,0.001,2835.4,2835.1,0.84355819]
[1766011847933,0.001,2835.4,2835.1,4.37076723]
[1766011848115,0.001,2835.4,2835.2,0.49307672]
[1766011849612,0.001,2835.4,2835.2,4.02015264]
[1766011850333,0.001,2835.4,2835.2,0.49307672]
[1766011852606,0.001,2835.4,2835.0,0.56]
[1766011852934,0.001,2835.4,2835.0,4.08732191]
[1766011853315,3.1408,2835.4,2835.0,0.002]
[1766011853523,0.001,2835.4,2835.1,0.558]
[1766011855738,0.4917,2835.2,2834.8,0.002]
[1766011856036,0.001,2835.4,2834.5,0.002]
[1766011856037,0.4917,2834.8,2834.5,0.002]
[1766011856339,3.1398,2834.8,2834.5,0.002]
[1766011856515,3.1398,2834.8,2834.6,0.558]
[1766011857915,3.1398,2834.8,2834.5,0.002]
[1766011858121,0.4917,2834.7,2834.5,0.002]
[1766011858435,2.6481,2835.3,2834.6,0.558]
[1766011858639,0.4917,2835.0,2834.6,0.558]
[1766011858810,0.4917,2834.8,2834.6,0.558]
[1766011859009,0.31518,2835.4,2834.6,0.558]
[1766011859238,2.6481,2835.2,2834.6,0.558]
[1766011859439,2.6481,2835.0,2834.6,0.558]
[1766011859651,0.4917,2834.8,2833.9,0.002]
[1766011859944,3.1398,2834.6,2834.0,4.1324622]
[1766011860948,3.1398,2834.6,2834.1,0.46438023]
[1766011862525,3.1398,2834.6,2834.2,0.558]
[1766011863835,2.6481,2834.6,2834.0,0.002]
[1766011864124,3.45378,2834.6,2834.1,0.558]
[1766011864328,0.4917,2834.4,2834.1,0.558]
[1766011864528,3.1398,2834.4,2834.1,0.558]
[1766011864834,2.6481,2834.7,2834.1,0.558]
[1766011865025,3.1398,2834.5,2834.1,0.558]
[1766011865336,0.4917,2834.4,2834.1,0.558]
[1766011865542,0.4917,2834.2,2834.1,0.558]
[1766011865941,3.1398,2834.2,2834.1,0.558]
[1766011873064,6.62758668,2835.0,2834.1,0.558]
[1766011873237,0.5004,2834.6,2834.1,0.558]
[1766011873430,2.4539,2834.3,2834.0,0.002]
[1766011873626,0.5004,2834.2,2834.1,0.558]
[1766011873860,2.9543,2834.2,2834.1,0.558]
[1766011875547,2.9543,2834.2,2834.0,0.002]
[1766011875858,2.9543,2834.2,2834.1,0.558]
[1766011877048,2.9543,2834.4,2834.1,0.558]
[1766011877265,2.9543,2834.3,2834.1,0.558]
[1766011877435,2.9543,2834.2,2834.1,0.558]
[1766011877967,2.9543,2834.2,2834.0,0.002]
[1766011878267,2.9543,2834.2,2834.1,0.558]
[1766011879550,0.5004,2834.3,2834.0,0.002]
[1766011879747,2.4539,2834.2,2834.1,0.558]
[1766011880058,2.9543,2834.2,2834.1,0.558]
[1766011882966,0.5004,2834.1,2833.9,0.002]
[1766011883173,2.9543,2834.0,2833.9,0.002]
[1766011883371,2.9543,2834.0,2833.9,0.56]
[1766011883672,0.5004,2834.3,2833.9,0.56]
[1766011883852,2.9543,2834.1,2834.0,0.002]
[1766011885240,2.4539,2834.4,2834.0,0.002]
[1766011885444,2.4539,2834.2,2834.0,0.002]
[1766011885668,2.9543,2834.2,2834.0,0.002]
[1766011885970,2.9543,2834.1,2834.0,0.002]
[1766011888858,2.9543,2834.4,2834.0,0.002]
[1766011889057,2.4539,2834.4,2834.0,0.002]
[1766011889264,2.9543,2834.3,2834.0,0.002]
[1766011889449,0.5004,2834.2,2834.0,0.002]
[1766011889649,2.9543,2834.2,2834.0,0.002]
[1766011889876,0.001,2834.5,2834.0,0.002]
[1766011890071,2.4539,2834.2,2834.0,0.002]
[1766011890256,2.9543,2834.2,2834.0,0.002]
[1766011891574,0.001,2834.5,2834.0,0.002]
[1766011891872,2.9543,2834.3,2834.0,0.002]
[1766011892376,0.5004,2834.2,2833.9,0.002]
[1766011892580,2.9543,2834.1,2833.9,0.56]
[1766011892878,0.001,2834.3,2833.9,0.56]
[1766011893658,0.001,2834.3,2834.0,0.558]
[1766011893659,2.9543,2834.2,2834.0,0.558]
[1766011894181,0.001,2834.3,2834.0,0.558]
[1766011894476,2.9553,2834.3,2834.0,0.558]
[1766011897457,2.9553,2834.3,2833.9,0.56]
[1766011898677,2.4549,2834.3,2833.9,0.56]
[1766011898860,2.9553,2834.3,2833.9,0.56]
[1766011899061,2.4549,2834.3,2833.9,0.002]
[1766011899277,2.9543,2834.2,2833.9,0.56]
[1766011899673,0.001,2834.3,2833.9,0.56]
[1766011899981,2.9553,2834.3,2833.9,0.56]
[1766011900872,2.7969,2834.2,2833.9,0.56]
[1766011901786,0.001,2834.3,2833.9,0.56]
[1766011902087,2.7979,2834.3,2833.9,0.56]
[1766011903078,0.001,2834.3,2833.9,0.56]
[1766011903985,2.7979,2834.3,2833.9,0.56]
[1766011905682,0.4941,2834.2,2833.9,0.56]
[1766011905857,2.7969,2834.2,2833.9,0.56]
[1766011908761,0.001,2834.3,2833.9,0.56]
[1766011908963,2.7979,2834.3,2833.9,0.56]
[1766011915016,0.001,2834.3,2833.9,0.56]
[1766011920834,0.001,2834.5,2833.9,0.56]
[1766011921516,2.3038,2834.5,2833.9,0.56]
[1766011921720,0.23138,2834.5,2833.9,0.56]
[1766011921924,2.7969,2834.4,2833.9,0.002]
[1766011922092,2.7969,2834.4,2834.0,0.558]
[1766011922628,2.3028,2834.4,2834.0,0.558]
[1766011922926,0.001,2834.3,2834.0,0.558]
[1766011923630,2.7979,2834.3,2833.9,0.002]
[1766011923833,2.7979,2834.3,2833.9,0.56]
[1766011926316,0.001,2834.5,2833.9,7.61737509]
[1766011926522,0.001,2834.5,2834.0,1.11481871]
[1766011927997,0.4941,2835.1,2834.0,1.57919894]
[1766011928198,2.7969,2834.8,2834.1,7.056914]
[1766011928394,0.4941,2834.9,2834.1,10.585371]
[1766011928619,0.001,2835.4,2834.3,0.04588208]
[1766011928927,0.001,2835.7,2834.8,0.405504]
[1766011929124,0.001,2835.7,2834.9,0.558]
[1766011929523,0.001,2835.9,2835.0,0.405504]
[1766011929895,0.001,2835.9,2835.1,0.14136948]
[1766011930101,0.001,2835.9,2835.2,10.58126409]
[1766011930421,0.001,2835.9,2835.3,0.558]
[1766011930623,0.001,2836.1,2835.3,1.02238023]
[1766011930827,6.63434821,2836.9,2835.4,0.405504]
[1766011931123,6.63434821,2836.9,2835.5,0.04588208]
[1766011931323,0.001,2836.8,2835.5,0.04588208]
[1766011931624,0.66353482,2836.7,2835.5,0.04588208]
[1766011932125,0.66353482,2836.7,2835.6,7.05318098]
[1766011932324,2.3764,2836.6,2835.7,0.558]
[1766011932625,2.8576,2836.6,2835.7,0.558]
[1766011934403,2.8576,2836.6,2835.8,3.52634177]
[1766011934622,0.28576,2836.5,2835.8,3.52634177]
[1766011935222,0.4812,2836.3,2835.1,0.51026231]
[1766011935535,2.8576,2835.8,2835.5,3.52663183]
[1766011935730,2.8576,2836.7,2835.5,3.52663183]
[1766011936028,2.84078023,2836.4,2835.6,3.52652391]
[1766011936237,3.32198023,2836.2,2835.6,3.52652391]
[1766011936537,3.32198023,2836.2,2835.4,7.05367848]
[1766011937205,3.32198023,2836.2,2835.5,0.558]
[1766011937422,0.46438023,2836.2,2835.5,0.558]
[1766011938436,0.46438023,2836.2,2835.6,3.52659049]
[1766011938638,0.36060583,2836.1,2835.6,3.52659049]
[1766011939214,0.36060583,2836.1,2835.6,4.08459049]
[1766011940116,2.3764,2836.4,2835.6,4.08459049]
[1766011940317,0.4812,2836.1,2835.7,0.36060583]
[1766011940521,2.8576,2836.2,2835.7,0.91860583]
[1766011940721,0.001,2836.5,2835.7,0.91860583]
[1766011941044,0.001,2836.5,2835.7,4.08444614]
[1766011941045,2.8576,2836.4,2835.7,4.08444614]
[1766011941254,0.46438023,2836.3,2835.8,0.46438023]
[1766011942350,3.32198023,2836.3,2835.8,0.46438023]
[1766011942758,0.28586,2836.4,2835.8,3.99069847]
[1766011942960,0.46538023,2836.5,2835.8,3.99069847]
[1766011943126,2.8586,2836.5,2835.8,3.52631824]
[1766011944528,0.001,2836.5,2835.8,3.52631824]